fUSD/lending_fUSD_20241223
["ID","MTS","AMOUNT","RATE_DAILY","PERIOD"]
[346447121,1734979432498,-500.0,0.00017799,2]
[346447122,1734979432536,-500.0,0.00017799,2]
[346447123,1734979432573,-659.83,0.00017799,2]
[346447124,1734979432610,-859.15,0.00017799,2]
[346447125,1734979432647,-500.0,0.00017799,2]
[346447126,1734979432684,-500.0,0.00017799,2]
[346447127,1734979432722,-500.0,0.00017799,2]
[346447128,1734979432758,-500.0,0.00017799,2]
[346447129,1734979432798,-500.0,0.00017799,2]
[346447130,1734979432835,-562.9,0.00017799,2]
[346447131,1734979432875,-756.75,0.00017799,2]
[346447132,1734979432916,-500.0,0.00017799,2]
[346447133,1734979432956,-609.25,0.00017799,2]
[346447134,1734979432996,-664.88,0.00017799,2]
[346447135,1734979433039,-3563.88,0.00017799,2]
[346447136,1734979433077,-500.0,0.00017799,2]
[346447137,1734979433114,-1330.7,0.00017799,2]
[346447138,1734979433150,-1263.69,0.00017799,2]
[346447139,1734979433187,-500.0,0.00017799,2]
[346447140,1734979433224,-888.77,0.00017799,2]
[346447141,1734979433261,-1371.99,0.00017799,2]
[346447142,1734979433299,-500.0,0.00017799,2]
[346447143,1734979433335,-600.39,0.00017799,2]
[346447144,1734979433373,-10166.96,0.00017799,2]
[346447145,1734979433409,-1256.14,0.00017799,2]
[346447146,1734979433448,-500.0,0.00017799,2]
[346447147,1734979433484,-1240.02,0.00017799,2]
[346447148,1734979433521,-3527.86,0.00017799,2]
[346447149,1734979433559,-760.46,0.00017799,2]
[346447150,1734979433595,-1076.29,0.00017799,2]
[346447151,1734979433635,-500.0,0.00017799,2]
[346447152,1734979433674,-2525.45,0.00017799,2]
[346447153,1734979433714,-5755.8,0.00017799,2]
[346447154,1734979433752,-563.49,0.00017799,2]
[346447155,1734979433791,-500.0,0.00017799,2]
[346447156,1734979433829,-1051.83,0.00017799,2]
[346447157,1734979433868,-4688.94,0.00017799,2]
[346447158,1734979433906,-3770.29,0.00017799,2]
[346447159,1734979433944,-500.0,0.00017799,2]
[346447160,1734979433983,-8807.6,0.00017799,2]
[346447161,1734979434020,-1017.98,0.00017799,2]
[346447162,1734979434056,-500.0,0.00017799,2]
[346447163,1734979434094,-1244.05,0.00017799,2]
[346447164,1734979434131,-500.0,0.00017799,2]
[346447165,1734979434169,-3190.13,0.00017799,2]
[346447166,1734979434206,-1242.34,0.00017799,2]
[346447167,1734979434243,-500.0,0.00017799,2]
[346447168,1734979434281,-1969.49,0.00017799,2]
[346447169,1734979434318,-721.42,0.00017799,2]
[346447170,1734979434356,-1110.6,0.00017799,2]
[346447171,1734979434393,-8035.72,0.00017799,2]
[346447172,1734979434430,-625.55,0.00017799,2]
[346447173,1734979434468,-936.39,0.00017799,2]
[346447174,1734979434506,-7583.8,0.00017799,2]
[346447175,1734979434545,-4933.96,0.00017799,2]
[346447176,1734979434583,-822.06,0.00017799,2]
[346447177,1734979434621,-25163.5,0.00017799,2]
[346447178,1734979434656,-573.56,0.00017799,2]
[346447179,1734979434694,-7086.92,0.00017799,2]
[346447180,1734979434731,-723.8,0.00017799,2]
[346447181,1734979434770,-500.0,0.00017799,2]
[346447182,1734979434806,-1716.21,0.00017799,2]
[346447183,1734979434842,-1357.98,0.00017799,2]
[346447184,1734979434880,-2106.14,0.00017799,2]
[346447185,1734979434917,-580.67,0.00017799,2]
[346447186,1734979435162,-500.0,0.00017799,2]
[346447187,1734979435200,-3707.65,0.00017799,2]
[346447188,1734979435237,-424.56155682,0.00017799,2]
[346447189,1734979435273,-500.0,0.00017799,2]
[346447190,1734979435310,-500.0,0.00017799,2]
[346447191,1734979435348,-2211.7,0.00017799,2]
[346447192,1734979435386,-1962.73,0.00017799,2]
[346447193,1734979435424,-1278.11,0.00017799,2]
[346447194,1734979435460,-3312.36,0.00017799,2]
[346447195,1734979435497,-500.0,0.00017799,2]
[346447196,1734979435533,-2973.07,0.00017799,2]
[346447197,1734979435570,-8378.91,0.00017799,2]
[346447198,1734979435606,-630.91,0.00017799,2]
[346447199,1734979435644,-531.07,0.00017799,2]
[346447200,1734979435684,-1595.46,0.00017799,2]
[346447201,1734979435720,-500.0,0.00017799,2]
[346447202,1734979435757,-2470.53,0.00017799,2]
[346447203,1734979435798,-500.0,0.00017799,2]
[346447204,1734979435836,-506.16,0.00017799,2]
[346447205,1734979435876,-500.0,0.00017799,2]
[346447206,1734979435914,-1617.88,0.00017799,2]
[346447207,1734979435957,-4509.73,0.00017799,2]
[346447208,1734979435994,-2903.34,0.00017799,2]
[346447209,1734979436033,-786.94,0.00017799,2]
[346447210,1734979436071,-500.0,0.00017799,2]
[346447211,1734979436109,-588.72,0.00017799,2]
[346447212,1734979436147,-500.0,0.00017799,2]
[346447213,1734979436183,-500.0,0.00017799,2]
[346447214,1734979436221,-3246.74,0.00017799,2]
[346447215,1734979436260,-1933.1,0.00017799,2]
[346447216,1734979436298,-711.39,0.00017799,2]
[346447217,1734979436338,-555.3,0.00017799,2]
[346447218,1734979436376,-576.96,0.00017799,2]
[346447219,1734979436415,-1325.54,0.00017799,2]
[346447220,1734979436453,-500.0,0.00017799,2]
[346447221,1734979436491,-2348.88,0.00017799,2]
[346447222,1734979436527,-3268.76,0.00017799,2]
[346447223,1734979436563,-1499.3,0.00017799,2]
[346447224,1734979436600,-500.0,0.00017799,2]
[346447225,1734979436636,-1240.52,0.00017799,2]
[346447226,1734979436670,-2161.97,0.00017799,2]
[346447227,1734979436706,-2745.39,0.00017799,2]
[346447228,1734979436742,-2360.09,0.00017799,2]
[346447229,1734979436778,-608.23,0.00017799,2]
[346447230,1734979436813,-500.0,0.00017799,2]
[346447231,1734979436847,-500.0,0.00017799,2]
[346447232,1734979436885,-5740.01,0.00017799,2]
[346447233,1734979436920,-3919.4,0.00017799,2]
[346447234,1734979436957,-500.0,0.00017799,2]
[346447235,1734979436992,-500.0,0.00017799,2]
[346447236,1734979437032,-883.77,0.00017799,2]
[346447237,1734979437069,-500.0,0.00017799,2]
[346447238,1734979437107,-500.0,0.00017799,2]
[346447239,1734979437143,-6919.75,0.00017799,2]
[346447240,1734979437178,-3640.95,0.00017799,2]
[346447241,1734979437213,-500.0,0.00017799,2]
[346447242,1734979437249,-500.0,0.00017799,2]
[346447243,1734979437284,-7254.07,0.00017799,2]
[346447244,1734979437319,-500.0,0.00017799,2]
[346447245,1734979437355,-34197.14,0.00017799,2]
[346447246,1734979437391,-1461.43,0.00017799,2]
[346447247,1734979437426,-1026.74,0.00017799,2]
[346447248,1734979437461,-500.0,0.000178,2]
[346447249,1734979437497,-500.0,0.000178,2]
[346447250,1734979437539,-500.0,0.000178,2]
[346447251,1734979437574,-500.0,0.000178,2]
[346447252,1734979437610,-705.73,0.000178,2]
[346447253,1734979437644,-500.0,0.000178,2]
[346447254,1734979437678,-678.52,0.000178,2]
[346447255,1734979437712,-500.0,0.000178,2]
[346447256,1734979437746,-500.0,0.000178,2]
[346447257,1734979437787,-500.0,0.000178,2]
[346447258,1734979437825,-1291.97,0.000178,2]
[346447259,1734979437862,-500.0,0.000178,2]
[346447260,1734979437898,-500.0,0.000178,2]
[346447261,1734979437935,-500.0,0.000178,2]
[346447262,1734979437970,-635.2,0.000178,2]
[346447263,1734979438008,-500.0,0.000178,2]
[346447264,1734979438044,-1188.9,0.000178,2]
[346447265,1734979438083,-595.42,0.000178,2]
[346447266,1734979438118,-500.0,0.000178,2]
[346447267,1734979438155,-867.8,0.000178,2]
[346447268,1734979438190,-584.42,0.000178,2]
[346447269,1734979438225,-500.0,0.000178,2]
[346447270,1734979438261,-557.08,0.000178,2]
[346447271,1734979438299,-1069.37,0.000178,2]
[346447272,1734979438335,-500.0,0.000178,2]
[346447273,1734979438371,-674.72,0.000178,2]
[346447274,1734979438409,-500.0,0.000178,2]
[346447275,1734979438444,-766.54,0.000178,2]
[346447276,1734979438480,-500.0,0.000178,2]
[346447277,1734979438514,-1812.71,0.000178,2]
[346447278,1734979438549,-389.11740564,0.000178,2]
[346447279,1734979438585,-886.55,0.000178,2]
[346447280,1734979438622,-1552.33,0.000178,2]
[346447281,1734979438658,-500.0,0.000178,2]
[346447282,1734979438693,-500.0,0.000178,2]
[346447283,1734979438728,-500.0,0.000178,2]
[346447284,1734979438763,-1224.65,0.000178,2]
[346447285,1734979438799,-500.0,0.000178,2]
[346447286,1734979438834,-1381.46,0.000178,2]
[346447287,1734979438871,-1378.16,0.000178,2]
[346447288,1734979438906,-1583.49,0.000178,2]
[346447289,1734979438944,-500.0,0.000178,2]
[346447290,1734979438980,-500.0,0.000178,2]
[346447291,1734979439021,-500.0,0.000178,2]
[346447292,1734979439057,-500.0,0.000178,2]
[346447293,1734979439096,-1246.2,0.000178,2]
[346447294,1734979439136,-718.17,0.000178,2]
[346447296,1734979439174,-500.0,0.000178,2]
[346447297,1734979439211,-500.0,0.000178,2]
[346447298,1734979439248,-500.0,0.000178,2]
[346447299,1734979439284,-500.0,0.000178,2]
[346447300,1734979439319,-2139.6,0.000178,2]
[346447301,1734979439355,-500.0,0.000178,2]
[346447302,1734979439393,-500.0,0.000178,2]
[346447303,1734979439431,-625.59,0.000178,2]
[346447304,1734979439467,-463.89399656,0.000178,2]
[346447305,1734979439507,-1076.93,0.000178,2]
[346447306,1734979439542,-693.82,0.000178,2]
[346447307,1734979439579,-1574.87,0.000178,2]
[346447308,1734979439613,-500.0,0.000178,2]
[346447309,1734979439649,-500.0,0.000178,2]
[346447310,1734979439682,-2176.37,0.000178,2]
[346447311,1734979439717,-500.0,0.000178,2]
[346447312,1734979439756,-979.79,0.000178,2]
[346447313,1734979439797,-621.2,0.000178,2]
[346447314,1734979439837,-500.0,0.000178,2]
[346447315,1734979439877,-241.98,0.000178,2]
[346447316,1734979439917,-505.41,0.000178,2]
[346447317,1734979439956,-595.59294909,0.000178,2]
[346447318,1734979439996,-500.0,0.000178,2]
[346447319,1734979440042,-1092.51,0.000178,2]
[346447320,1734979440084,-543.48,0.000178,2]
[346447321,1734979440125,-711.5,0.000178,2]
[346447322,1734979440165,-500.0,0.000178,2]
[346447323,1734979440202,-500.0,0.000178,2]
[346447324,1734979440241,-1342.52,0.000178,2]
[346447325,1734979440277,-500.0,0.000178,2]
[346447326,1734979440316,-1669.44,0.000178,2]
[346447327,1734979440354,-642.41,0.000178,2]
[346447328,1734979440392,-500.0,0.000178,2]
[346447329,1734979440431,-1238.92,0.000178,2]
[346447330,1734979440468,-500.0,0.000178,2]
[346447331,1734979440506,-855.81,0.000178,2]
[346447332,1734979440546,-500.0,0.000178,2]
[346447333,1734979440584,-500.0,0.000178,2]
[346447334,1734979440622,-1107.65,0.000178,2]
[346447335,1734979440658,-2188.83,0.000178,2]
[346447336,1734979440992,-1292.23,0.000178,2]
[346447337,1734979441033,-1107.29,0.000178,2]
[346447338,1734979441072,-1237.68,0.000178,2]
[346447339,1734979441112,-1121.91,0.000178,2]
[346447340,1734979441148,-500.0,0.000178,2]
[346447341,1734979441186,-500.0,0.000178,2]
[346447342,1734979441221,-1035.95,0.000178,2]
[346447343,1734979441257,-500.0,0.000178,2]
[346447344,1734979441294,-2435.37,0.000178,2]
[346447345,1734979441332,-1117.92,0.000178,2]
[346447346,1734979441369,-1206.55,0.000178,2]
[346447347,1734979441406,-500.0,0.000178,2]
[346447348,1734979441441,-624.39,0.000178,2]
[346447349,1734979441477,-817.79,0.000178,2]
[346447350,1734979441513,-1106.82,0.000178,2]
[346447351,1734979441551,-1259.14,0.000178,2]
[346447352,1734979441588,-1659.59,0.000178,2]
[346447353,1734979441624,-500.0,0.000178,2]
[346447354,1734979441660,-1721.71,0.000178,2]
[346447355,1734979441696,-500.0,0.000178,2]
[346447356,1734979441732,-1000.22,0.000178,2]
[346447357,1734979441769,-500.0,0.000178,2]
[346447358,1734979441806,-1033.18,0.000178,2]
[346447359,1734979441842,-631.32,0.000178,2]
[346447360,1734979441878,-583.17,0.000178,2]
[346447361,1734979441914,-905.86,0.000178,2]
[346447362,1734979441950,-1020.23,0.000178,2]
[346447363,1734979441989,-500.0,0.000178,2]
[346447364,1734979442025,-500.0,0.000178,2]
[346447365,1734979442063,-500.0,0.000178,2]
[346447366,1734979442100,-910.63,0.000178,2]
[346447367,1734979442140,-500.0,0.000178,2]
[346447368,1734979442175,-500.0,0.000178,2]
[346447369,1734979442211,-500.0,0.000178,2]
[346447370,1734979442247,-500.0,0.000178,2]
[346447371,1734979442286,-2009.04,0.000178,2]
[346447372,1734979442322,-500.0,0.000178,2]
[346447373,1734979442358,-1878.82,0.000178,2]
[346447374,1734979442393,-791.2,0.000178,2]
[346447375,1734979442430,-1365.88,0.000178,2]
[346447376,1734979442466,-500.0,0.000178,2]
[346447377,1734979442501,-500.0,0.000178,2]
[346447378,1734979442536,-3000.0,0.000178,2]
[346447379,1734979442576,-1821.33,0.000178,2]
[346447380,1734979442614,-1025.8,0.000178,2]
[346447381,1734979442651,-500.0,0.000178,2]
[346447382,1734979442687,-801.79,0.000178,2]
[346447383,1734979442721,-500.0,0.000178,2]
[346447384,1734979442758,-1264.6,0.000178,2]
[346447385,1734979442795,-1982.63,0.000178,2]
[346447386,1734979442832,-680.06,0.000178,2]
[346447387,1734979442869,-620.17,0.000178,2]
[346447388,1734979442907,-1376.71,0.000178,2]
[346447389,1734979442942,-500.0,0.000178,2]
[346447390,1734979442978,-1539.53,0.000178,2]
[346447391,1734979443019,-691.37,0.000178,2]
[346447392,1734979443062,-500.0,0.000178,2]
[346447393,1734979443100,-500.0,0.000178,2]
[346447394,1734979443140,-500.0,0.000178,2]
[346447395,1734979443184,-643.02,0.000178,2]
[346447396,1734979443222,-1365.23,0.000178,2]
[346447397,1734979443262,-1556.07,0.000178,2]
[346447398,1734979443304,-586.59,0.000178,2]
[346447399,1734979443344,-500.0,0.000178,2]
[346447400,1734979443381,-1781.68,0.000178,2]
[346447401,1734979443420,-657.33,0.000178,2]
[346447402,1734979443457,-1034.69,0.000178,2]
[346447403,1734979443496,-500.0,0.000178,2]
[346447404,1734979443533,-647.34,0.000178,2]
[346447405,1734979443569,-855.6,0.000178,2]
[346447406,1734979443608,-1419.82,0.000178,2]
[346447407,1734979443646,-590.74,0.000178,2]
[346447408,1734979443684,-500.0,0.000178,2]
[346447409,1734979443720,-500.0,0.000178,2]
[346447410,1734979443758,-1853.8,0.000178,2]
[346447411,1734979443799,-500.0,0.000178,2]
[346447412,1734979443841,-510.11443219,0.000178,2]
[346447413,1734979443882,-581.59,0.000178,2]
[346447414,1734979443923,-637.56,0.000178,2]
[346447415,1734979443962,-1360.21,0.000178,2]
[346447416,1734979444004,-1229.22,0.000178,2]
[346447417,1734979444046,-950.96,0.000178,2]
[346447418,1734979444084,-1119.5,0.000178,2]
[346447419,1734979444120,-1210.13,0.000178,2]
[346447420,1734979444156,-350.96718509,0.000178,2]
[346447421,1734979444192,-500.0,0.000178,2]
[346447422,1734979444228,-1956.75,0.000178,2]
[346447423,1734979444264,-500.0,0.000178,2]
[346447424,1734979444303,-500.0,0.000178,2]
[346447425,1734979444344,-953.92,0.000178,2]
[346447426,1734979444379,-500.0,0.000178,2]
[346447427,1734979444418,-500.0,0.000178,2]
[346447428,1734979444455,-2408.41,0.000178,2]
[346447429,1734979444490,-803.94,0.000178,2]
[346447430,1734979444527,-514.6283208,0.000178,2]
[346447431,1734979444564,-847.29,0.000178,2]
[346447432,1734979444601,-1644.7,0.000178,2]
[346447433,1734979444636,-500.0,0.000178,2]
[346447434,1734979444673,-526.57,0.000178,2]
[346447435,1734979444713,-1371.07,0.00017801,2]
[346447436,1734979444749,-1663.37,0.00017801,2]
[346447437,1734979444785,-837.94,0.00017801,2]
[346447438,1734979444820,-1388.77,0.00017801,2]
[346447439,1734979444857,-1369.24,0.00017801,2]
[346447440,1734979444893,-2471.64,0.00017801,2]
[346447441,1734979444930,-1111.01,0.00017801,2]
[346447442,1734979444964,-2171.0,0.00017801,2]
[346447443,1734979444999,-2339.58,0.00017801,2]
[346447444,1734979445040,-3277.1,0.00017801,2]
[346447445,1734979445076,-930.67,0.00017801,2]
[346447446,1734979445112,-500.0,0.00017801,2]
[346447447,1734979445147,-645.69,0.00017801,2]
[346447448,1734979445184,-500.0,0.00017801,2]
[346447449,1734979445219,-2270.32,0.00017801,2]
[346447450,1734979445254,-1564.54,0.00017801,2]
[346447451,1734979445288,-1228.22,0.00017801,2]
[346447452,1734979445323,-500.0,0.00017801,2]
[346447453,1734979445359,-500.0,0.00017801,2]
[346447454,1734979445395,-500.0,0.00017801,2]
[346447455,1734979445430,-500.0,0.00017801,2]
[346447456,1734979445466,-1600.43,0.00017801,2]
[346447457,1734979445502,-506.82,0.00017801,2]
[346447458,1734979445537,-1220.52,0.00017801,2]
[346447459,1734979445572,-504.2,0.00017801,2]
[346447460,1734979445609,-2192.62,0.00017801,2]
[346447461,1734979445646,-1487.49,0.00017801,2]
[346447462,1734979445682,-1154.18,0.00017801,2]
[346447463,1734979445718,-1508.73,0.00017801,2]
[346447464,1734979445754,-622.07,0.00017801,2]
[346447465,1734979445788,-2309.93,0.00017801,2]
[346447466,1734979445825,-500.0,0.00017801,2]
[346447467,1734979445863,-1656.12,0.00017801,2]
[346447468,1734979445900,-582.32,0.00017801,2]
[346447469,1734979445939,-1070.94,0.00017801,2]
[346447470,1734979445974,-616.56,0.00017801,2]
[346447471,1734979446013,-1179.2,0.00017801,2]
[346447472,1734979446048,-500.0,0.00017801,2]
[346447473,1734979446086,-1895.38,0.00017801,2]
[346447474,1734979446123,-3417.45,0.00017801,2]
[346447475,1734979446159,-1747.32,0.00017801,2]
[346447476,1734979446195,-1234.71,0.00017801,2]
[346447477,1734979446231,-1623.44,0.00017801,2]
[346447478,1734979446268,-1290.46,0.00017801,2]
[346447479,1734979446307,-500.0,0.00017801,2]
[346447480,1734979446349,-2929.38,0.00017801,2]
[346447481,1734979446387,-1956.04,0.00017801,2]
[346447482,1734979446427,-2832.21,0.00017801,2]
[346447483,1734979446466,-1343.41,0.00017801,2]
[346447484,1734979446506,-2681.82,0.00017801,2]
[346447485,1734979446551,-1691.1,0.00017801,2]
[346447486,1734979446873,-510.48,0.00017801,2]
[346447487,1734979446912,-1607.26,0.00017801,2]
[346447488,1734979446949,-936.58,0.00017801,2]
[346447489,1734979446984,-500.0,0.00017802,2]
[346447490,1734979447023,-755.53,0.00017802,2]
[346447491,1734979447059,-1072.6,0.00017802,2]
[346447492,1734979447096,-500.0,0.00017802,2]
[346447493,1734979447131,-500.0,0.00017802,2]
[346447494,1734979447168,-500.0,0.00017802,2]
[346447495,1734979447204,-500.0,0.00017802,2]
[346447496,1734979447241,-500.0,0.00017802,2]
[346447497,1734979447279,-500.0,0.00017802,2]
[346447498,1734979447313,-500.0,0.00017802,2]
[346447499,1734979447353,-500.0,0.00017802,2]
[346447500,1734979447389,-1183.55,0.00017802,2]
[346447501,1734979447427,-500.0,0.00017802,2]
[346447502,1734979447463,-955.35,0.00017802,2]
[346447503,1734979447501,-1287.54,0.00017802,2]
[346447504,1734979447536,-1303.96,0.00017802,2]
[346447505,1734979447571,-967.69,0.00017802,2]
[346447506,1734979447608,-559.49,0.00017802,2]
[346447507,1734979447644,-500.0,0.00017802,2]
[346447508,1734979447681,-500.0,0.00017802,2]
[346447509,1734979447717,-646.31,0.00017802,2]
[346447510,1734979447755,-500.0,0.00017802,2]
[346447511,1734979447795,-578.27,0.00017802,2]
[346447512,1734979447836,-1214.04,0.00017802,2]
[346447513,1734979447876,-500.0,0.00017802,2]
[346447514,1734979447915,-500.0,0.00017802,2]
[346447515,1734979447956,-1088.36,0.00017802,2]
[346447516,1734979447995,-696.23,0.00017802,2]
[346447517,1734979448038,-500.0,0.00017802,2]
[346447518,1734979448076,-830.44,0.00017802,2]
[346447519,1734979448113,-1199.95,0.00017802,2]
[346447520,1734979448150,-500.0,0.00017802,2]
[346447521,1734979448189,-736.51,0.00017802,2]
[346447522,1734979448228,-2197.92,0.00017802,2]
[346447523,1734979448266,-500.0,0.00017802,2]
[346447524,1734979448307,-511.07,0.00017802,2]
[346447525,1734979448347,-1357.67,0.00017802,2]
[346447526,1734979448388,-1003.86,0.00017802,2]
[346447527,1734979448428,-662.02,0.00017802,2]
[346447528,1734979448468,-1187.46,0.00017802,2]
[346447529,1734979448507,-1288.03,0.00017802,2]
[346447530,1734979448544,-1136.77,0.00017802,2]
[346447531,1734979448583,-500.0,0.00017802,2]
[346447532,1734979448622,-500.0,0.00017802,2]
[346447533,1734979448662,-1136.93,0.00017802,2]
[346447534,1734979448700,-1653.42,0.00017802,2]
[346447535,1734979448738,-500.0,0.00017802,2]
[346447536,1734979448776,-500.0,0.00017802,2]
[346447537,1734979448813,-500.0,0.00017802,2]
[346447538,1734979448853,-500.0,0.00017802,2]
[346447539,1734979448895,-931.65,0.00017802,2]
[346447540,1734979448937,-500.0,0.00017802,2]
[346447541,1734979448976,-733.26,0.00017802,2]
[346447542,1734979449018,-1427.16,0.00017802,2]
[346447543,1734979449058,-500.0,0.00017802,2]
[346447544,1734979449096,-500.0,0.00017802,2]
[346447545,1734979449131,-500.0,0.00017802,2]
[346447546,1734979449167,-989.5,0.00017802,2]
[346447547,1734979449202,-559.03,0.00017802,2]
[346447548,1734979449239,-1550.73,0.00017802,2]
[346447549,1734979449275,-500.0,0.00017802,2]
[346447550,1734979449311,-500.0,0.00017802,2]
[346447551,1734979449349,-153.65,0.000179,2]
[346447552,1734979449388,-3216.00757149,0.00017927,2]
[346447553,1734979449423,-500.0,0.00017937,2]
[346447554,1734979449463,-633.0,0.0001794,2]
[346447555,1734979449499,-565.0,0.0001794,2]
[346447556,1734979449537,-526.13864138,0.00017947,2]
[346447557,1734979449573,-1899.0,0.00017968,2]
[346447558,1734979449609,-818.0,0.00017968,2]
[346447559,1734979449644,-3770.0,0.00017968,2]
[346447560,1734979449682,-924.0,0.00017968,2]
[346447561,1734979449718,-1254.0,0.00017968,2]
[346447562,1734979449756,-3682.0,0.00017968,2]
[346447563,1734979449795,-536.0,0.00017968,2]
[346447564,1734979449833,-150.0,0.00017968,2]
[346447565,1734979449873,-3887.0,0.00017968,2]
[346447566,1734979449911,-1265.0,0.00017969,2]
[346447567,1734979449949,-2011.0,0.00017969,2]
[346447568,1734979449986,-150.0,0.00017969,2]
[346447569,1734979450025,-500.0,0.00017973,2]
[346447570,1734979450062,-500.0,0.00017973,2]
[346447571,1734979450097,-4187493.0,0.00018,2]
[346447572,1734979450134,-1045.67925123,0.00018047,2]
[346447573,1734979450170,-1037.8051875,0.00018047,2]
[346447574,1734979450208,-3216.00757149,0.00018056,2]
[346447575,1734979450244,-946.97,0.00018071,2]
[346447576,1734979450282,-500.0,0.00018071,2]
[346447577,1734979450316,-1073.05,0.00018071,2]
[346447578,1734979450353,-2323.63,0.00018071,2]
[346447579,1734979450389,-3167.94,0.00018071,2]
[346447580,1734979450426,-2292.8,0.00018071,2]
[346447581,1734979450461,-2294.43,0.00018071,2]
[346447582,1734979450497,-994.54,0.00018071,2]
[346447583,1734979450533,-1916.33,0.00018071,2]
[346447584,1734979450570,-517.01,0.00018071,2]
[346447585,1734979450609,-771.01,0.00018071,2]
[346447586,1734979450648,-3890.24,0.00018071,2]
[346447587,1734979450685,-4907.33,0.00018071,2]
[346447588,1734979450722,-1036.33,0.00018071,2]
[346447589,1734979450761,-500.0,0.00018071,2]
[346447590,1734979450799,-1621.42,0.00018071,2]
[346447591,1734979450838,-500.0,0.00018071,2]
[346447592,1734979450877,-6199.08,0.00018071,2]
[346447593,1734979450918,-1495.22,0.00018071,2]
[346447594,1734979450954,-561.36,0.00018071,2]
[346447595,1734979450991,-500.0,0.00018071,2]
[346447596,1734979451031,-2963.01,0.00018071,2]
[346447597,1734979451068,-1105.65,0.00018071,2]
[346447598,1734979451105,-19032.56,0.00018071,2]
[346447599,1734979451143,-500.0,0.00018071,2]
[346447600,1734979451178,-3483.46,0.00018071,2]
[346447601,1734979451215,-1936.61,0.00018071,2]
[346447602,1734979451251,-4787.85,0.00018071,2]
[346447603,1734979451287,-1636.43,0.00018071,2]
[346447604,1734979451322,-6135.29,0.00018071,2]
[346447605,1734979451364,-7406.66,0.00018071,2]
[346447606,1734979451399,-1896.84,0.00018071,2]
[346447607,1734979451435,-3961.08,0.00018071,2]
[346447608,1734979451469,-3888.71,0.00018071,2]
[346447609,1734979451504,-1274.68,0.00018071,2]
[346447610,1734979451538,-3012.85,0.00018071,2]
[346447611,1734979451574,-1880.28,0.00018071,2]
[346447612,1734979451609,-6536.91,0.00018071,2]
[346447613,1734979451644,-986.71,0.00018071,2]
[346447614,1734979451679,-20885.3,0.00018071,2]
[346447615,1734979451713,-817.19,0.00018071,2]
[346447616,1734979451748,-992.34,0.00018071,2]
[346447617,1734979451783,-562.14,0.00018071,2]
[346447618,1734979451817,-2611.64,0.00018071,2]
[346447619,1734979451852,-500.0,0.00018072,2]
[346447620,1734979451887,-287.45489179,0.00018072,2]
[346447621,1734979451923,-504.78,0.00018072,2]